lending/lending_fUSD_20260204
["ID","MTS","AMOUNT","RATE_DAILY","PERIOD"]
[404484375,1770202167113,-2965.51864425,0.00013996,2]
[404484376,1770202167149,-716.60712691,0.00013996,2]
[404484377,1770202167182,-1815.10633301,0.00013996,2]
[404484378,1770202167218,-151.0,0.00013997,2]
[404484379,1770202167258,-3500000.0,0.00014,2]
[404484380,1770202167304,-500.0,0.00014028,2]
[404484381,1770202167342,-500.0,0.00014083,2]
[404484382,1770202167376,-2500.0,0.00014096,2]
[404484383,1770202167410,-1102.0,0.00014099,2]
[404484384,1770202167447,-4261.56337688,0.000141,2]
[404484385,1770202167482,-500.0,0.00014137,2]
[404484386,1770202167521,-7704.76223544,0.00014146,2]
[404484387,1770202167559,-500.0,0.00014192,2]
[404484388,1770202167595,-524.40782515,0.00014195,2]
[404484389,1770202167633,-279.32580208,0.00014195,2]
[404484390,1770202167672,-500.0,0.00014195,2]
[404484391,1770202167713,-500.0,0.00014195,2]
[404484392,1770202167759,-361.31453324,0.00014195,2]
[404484393,1770202167802,-500.0,0.00014195,2]
[404484394,1770202167838,-666.0,0.00014195,2]
[404484395,1770202167877,-1435.8509,0.000142,2]
[404484396,1770202167912,-500.0,0.00014247,2]
[404484397,1770202167947,-4790.0,0.00014274,2]
[404484398,1770202167985,-150.49192517,0.00014274,2]
[404484399,1770202168021,-915.63,0.00014274,2]
[404484400,1770202168059,-227.59344081,0.0001429,2]
[404484401,1770202168101,-227.59344081,0.0001429,2]
[404484402,1770202168139,-2721.82,0.0001429,2]
[404484403,1770202168176,-2721.82,0.0001429,2]
[404484404,1770202168216,-2721.82,0.0001429,2]
[404484405,1770202168254,-2721.82,0.0001429,2]
[404484406,1770202168293,-2721.82,0.0001429,2]
[404484407,1770202168331,-670.83228666,0.00014295,2]
[404484409,1770202168373,-76799.3993744,0.00014296,2]
[404484410,1770202168412,-392.0,0.00014296,2]
[404484411,1770202168451,-203373.8517693,0.00014296,2]
[404484412,1770202168489,-154.56738754,0.00014299,2]
[404484413,1770202168535,-151.0,0.000143,2]
[404484414,1770202168574,-500.0,0.00014302,2]
[404484415,1770202168612,-166.66,0.00014329,2]
[404484416,1770202168649,-171.86323315,0.00014347,2]
[404484417,1770202168687,-500.0,0.00014357,2]
[404484418,1770202168723,-266.67306028,0.00014392,2]
[404484419,1770202168760,-500.0,0.00014411,2]
[404484420,1770202168797,-269.01609877,0.00014415,2]
[404484421,1770202168834,-500.0,0.00014466,2]
[404484422,1770202168872,-1034.36214816,0.00014471,2]
[404484423,1770202168910,-670.68068141,0.00014486,2]
[404484424,1770202168948,-562.0,0.00014499,2]
[404484425,1770202168986,-500.0,0.00014521,2]
[404484426,1770202169025,-4261.56337685,0.00014522,2]
[404484427,1770202169062,-448.0,0.00014546,2]
[404484428,1770202169102,-500.0,0.00014576,2]
[404484429,1770202169142,-151.0,0.00014587,2]
[404484430,1770202169182,-500.0,0.000146,2]
[404484431,1770202169222,-500.0,0.00014631,2]
[404484432,1770202169260,-166.66,0.00014639,2]
[404484433,1770202169299,-2500.0,0.00014656,2]
[404484434,1770202169335,-2500.0,0.00014656,2]
[404484435,1770202169374,-2500.0,0.00014656,2]
[404484436,1770202169414,-300.0,0.00014656,2]
[404484437,1770202169454,-443.29385383,0.00014685,2]
[404484438,1770202169492,-3435.53086916,0.00014777,2]
[404484439,1770202169532,-166.66,0.00014787,2]
[404484440,1770202169573,-7590.0,0.00014852,2]
[404484441,1770202169612,-4261.56337685,0.00014944,2]
[404484442,1770202169652,-166.66,0.00014947,2]
[404484443,1770202169690,-269.01609876,0.00014996,2]
[404484444,1770202169729,-250.0,0.00015,2]
[404484445,1770202169766,-152.38,0.00015,2]
[404484447,1770202169807,-152.38,0.00015,2]
[404484449,1770202169848,-152.38,0.00015,2]
[404484450,1770202169886,-152.38,0.00015,2]
[404484451,1770202169924,-152.38,0.00015,2]
[404484452,1770202169962,-152.38,0.00015,2]
[404484453,1770202170000,-152.38,0.00015,2]
[404484454,1770202170247,-152.38,0.00015,2]
[404484455,1770202170287,-152.38,0.00015,2]
[404484456,1770202170324,-152.38,0.00015,2]
[404484457,1770202170361,-152.38,0.00015,2]
[404484458,1770202170398,-152.38,0.00015,2]
[404484459,1770202170434,-152.38,0.00015,2]
[404484460,1770202170472,-152.38,0.00015,2]
[404484461,1770202170509,-152.38,0.00015,2]
[404484462,1770202170546,-152.38,0.00015,2]
[404484463,1770202170583,-152.38,0.00015,2]
[404484464,1770202170620,-152.38,0.00015,2]
[404484465,1770202170655,-152.38,0.00015,2]
[404484466,1770202170691,-152.38,0.00015,2]
[404484467,1770202170728,-152.38,0.00015,2]
[404484468,1770202170764,-152.38,0.00015,2]
[404484469,1770202170805,-152.38,0.00015,2]
[404484470,1770202170843,-152.38,0.00015,2]
[404484471,1770202170880,-152.38,0.00015,2]
[404484472,1770202170918,-152.38,0.00015,2]
[404484473,1770202170956,-152.38,0.00015,2]
[404484474,1770202170995,-152.38,0.00015,2]
[404484475,1770202171037,-1000.0,0.00015148,2]
[404484476,1770202171075,-166.66,0.00015245,2]
[404484477,1770202171113,-166.66,0.00015255,2]
[404484478,1770202171152,-266.67306027,0.00015269,2]
[404484479,1770202171190,-571.28,0.00015288,2]
[404484480,1770202171226,-1000.0,0.00015299,2]
[404484481,1770202171262,-200.0,0.0001532,2]
[404484482,1770202171300,-4261.56337685,0.00015367,2]
[404484483,1770202171338,-200.0,0.00015373,2]
[404484484,1770202171375,-200.064073,0.00015439,2]
[404484485,1770202171412,-3240.0,0.00015439,2]
[404484486,1770202171448,-200.0,0.00015486,2]
[404484487,1770202171485,-3435.53086916,0.00015558,2]
[404484488,1770202171524,-166.66,0.00015563,2]
[404484489,1770202171562,-269.01609876,0.00015577,2]
[404484490,1770202171603,-7704.76223544,0.00015658,2]
[404484491,1770202171638,-2271.0,0.00015684,2]
[404484492,1770202171673,-150.0,0.00015684,2]
[404484493,1770202171712,-989.0,0.00015684,2]
[404484494,1770202171750,-500.0,0.00015696,2]
[404484495,1770202171785,-991.0,0.000157,2]
[404484496,1770202171822,-780.0,0.000157,2]
[404484497,1770202171859,-166.66,0.00015703,2]
[404484498,1770202171896,-152.38,0.00015729,2]
[404484499,1770202171939,-209.40437684,0.00015732,2]
[404484500,1770202171979,-174.61919141,0.00015732,2]
[404484501,1770202172015,-322.6107,0.00015732,2]
[404484502,1770202172053,-2271.0,0.00015739,2]
[404484503,1770202172092,-150.0,0.00015739,2]
[404484504,1770202172130,-989.0,0.00015739,2]
[404484505,1770202172169,-217.15233878,0.00015787,2]
[404484506,1770202172205,-4261.56337685,0.00015789,2]
[404484507,1770202172242,-2271.0,0.00015794,2]
[404484508,1770202172279,-200.0,0.00015794,2]
[404484509,1770202172314,-989.0,0.00015794,2]
[404484510,1770202172349,-225.18697532,0.00015842,2]
[404484511,1770202172384,-2271.0,0.00015848,2]
[404484512,1770202172419,-989.0,0.00015848,2]
[404484513,1770202172452,-166.66,0.00015872,2]
[404484514,1770202172488,-233.51889341,0.00015897,2]
[404484515,1770202172527,-150.0,0.000159,2]
[404484516,1770202172565,-150.0,0.000159,2]
[404484517,1770202172601,-150.0,0.000159,2]
[404484518,1770202172634,-2271.0,0.00015903,2]
[404484519,1770202172668,-989.0,0.00015903,2]
[404484520,1770202172703,-716.60712689,0.00015948,2]
[404484521,1770202172740,-242.15909246,0.00015952,2]
[404484522,1770202172775,-2271.0,0.00015958,2]
[404484523,1770202172809,-989.0,0.00015958,2]
[404484524,1770202172841,-188.96428999,0.00015987,2]
[404484525,1770202172872,-151.0,0.00015987,2]
[404484526,1770202172904,-2000.0,0.00015987,2]
[404484527,1770202172937,-251.11897888,0.00016007,2]
[404484528,1770202172969,-2271.0,0.00016013,2]
[404484529,1770202173000,-989.0,0.00016013,2]
[404484530,1770202173036,-260.4103811,0.00016062,2]
[404484531,1770202173068,-2271.0,0.00016068,2]
[404484532,1770202173102,-989.0,0.00016068,2]
[404484533,1770202173132,-700.0,0.00016082,2]
[404484534,1770202173162,-500.0,0.00016089,2]
[404484535,1770202173193,-200.0,0.00016116,2]
[404484536,1770202173227,-270.0455652,0.00016117,2]
[404484537,1770202173257,-2271.0,0.00016122,2]
[404484538,1770202173288,-989.0,0.00016122,2]
[404484539,1770202173319,-200.0,0.00016139,2]
[404484540,1770202173540,-266.67306027,0.00016146,2]
[404484541,1770202173572,-269.01609876,0.00016158,2]
[404484542,1770202173600,-166.66,0.00016161,2]
[404484543,1770202173629,-280.03725112,0.00016172,2]
[404484544,1770202173657,-2271.0,0.00016177,2]
[404484545,1770202173684,-989.0,0.00016177,2]
[404484546,1770202173710,-166.66,0.0001618,2]
[404484547,1770202173737,-2000.0,0.00016187,2]
[404484548,1770202173768,-4261.56337685,0.00016211,2]
[404484549,1770202173796,-290.39862941,0.00016227,2]
[404484550,1770202173824,-2271.0,0.00016232,2]
[404484551,1770202173853,-989.0,0.00016232,2]
[404484552,1770202173881,-181.08010149,0.0001628,2]
[404484553,1770202173909,-301.1433787,0.00016282,2]
[404484554,1770202173936,-2271.0,0.00016287,2]
[404484555,1770202173964,-989.0,0.00016287,2]
[404484556,1770202173992,-3435.53086916,0.00016338,2]
[404484557,1770202174022,-2271.0,0.00016342,2]
[404484558,1770202174051,-989.0,0.00016342,2]
[404484559,1770202174083,-500.0,0.00016356,2]
[404484560,1770202174119,-1000.0,0.00016356,2]
[404484561,1770202174159,-2000.0,0.00016387,2]
[404484562,1770202174189,-2271.0,0.00016396,2]
[404484563,1770202174219,-989.0,0.00016396,2]
[404484564,1770202174248,-200.0,0.00016405,2]
[404484565,1770202174276,-3253.0,0.00016422,2]
[404484566,1770202174302,-1317.0,0.00016422,2]
[404484567,1770202174328,-2476.46,0.00016422,2]
[404484568,1770202174354,-1335.0,0.00016422,2]
[404484569,1770202174379,-616.0,0.00016422,2]
[404484570,1770202174405,-1410.0,0.00016422,2]
[404484571,1770202174431,-3482.0,0.00016422,2]
[404484572,1770202174456,-568.0,0.00016422,2]
[404484573,1770202174482,-1271.0,0.00016422,2]
[404484574,1770202174512,-150.0,0.00016422,2]
[404484575,1770202174539,-1205.0,0.00016422,2]
[404484576,1770202174567,-917.0,0.00016422,2]
[404484577,1770202174593,-775.53,0.00016438,2]
[404484578,1770202175458,151.0,0.00016139,2]
[404484579,1770202175494,151.0,0.00016139,2]
[404484580,1770202175575,151.0,0.00016146,2]
[404484592,1770202232104,-300.0,0.0001343,2]
[404484593,1770202232276,-8648.79580009,0.0001343,2]
[404484594,1770202232286,-1737.86821057,0.0001343,2]
[404484595,1770202232297,-2425.00106134,0.0001343,2]
[404484599,1770202238259,-837.13072809,0.0001343,2]
[404484600,1770202238272,-5000.0,0.0001343,2]
[404484601,1770202238282,-5000.0,0.0001343,2]
[404484602,1770202238294,-5000.0,0.0001343,2]
[404484603,1770202238304,-1000.0,0.000139,2]
[404484604,1770202238315,-227.59344081,0.0001399,2]
[404484605,1770202238325,-151.0,0.00013997,2]
[404484606,1770202238335,-367.0854776,0.00013999,2]
[404484607,1770202238345,-206.81272592,0.00013999,2]
[404484608,1770202238355,-666.0,0.00013999,2]
[404484609,1770202238365,-157.32234755,0.00013999,2]
[404484610,1770202238375,-58.03731649,0.00013999,2]
[404484611,1770202238396,-221.28848559,0.00013999,2]
[404484612,1770202238406,-500.0,0.00013999,2]
[404484613,1770202238416,-500.0,0.00013999,2]
[404484614,1770202238426,-500.0,0.00013999,2]
[404484615,1770202238436,-175.18307991,0.00013999,2]
[404484616,1770202238445,-10083.28109401,0.00014,2]
[404484617,1770202238457,-1260.78888652,0.00014,2]
[404484618,1770202238469,-722.14799494,0.00014,2]
[404484619,1770202238480,-1364.2629872,0.00014,2]
[404484620,1770202238492,-1199.44426882,0.00014,2]
[404484621,1770202238507,-895.5214939,0.00014,2]
[404484622,1770202240446,-1202.03113237,0.00014,2]
[404484623,1770202240619,-1000.0,0.00014,2]
[404484624,1770202240630,-381.8366113,0.00014,2]
[404484625,1770202240641,-539.18345855,0.00014,2]
[404484626,1770202240652,-11336.80899494,0.00014,2]
[404484636,1770202244645,-500.0,0.000139,2]
[404484637,1770202244669,-935.8509,0.000139,2]
[404484638,1770202244679,-3133.50456928,0.00014,2]
[404484639,1770202244689,-341.04,0.00014,2]
[404484640,1770202244842,-500.0,0.00014,2]
[404484644,1770202246267,-2300.24840823,0.00014,2]
[404484645,1770202246459,-793.1136,0.00014,2]
[404484646,1770202246470,-1876.8110829,0.00014,2]
[404484647,1770202246481,-1739.1709747,0.00014,2]
[404484648,1770202246560,-355812.74079215,0.00014,2]
[404484649,1770202246571,-581.45672485,0.00014,2]
[404484650,1770202246582,-602.0,0.00014,2]
[404484652,1770202246596,-155634.45684543,0.00014,2]
[404484654,1770202246608,-2783.37,0.00014,2]
[404484657,1770202246618,-265.60627094,0.00014,2]
[404484775,1770202305995,-228.0,0.00043783,30]
[404484776,1770202306026,-500.0,0.00043783,120]
[404484777,1770202306057,-500.0,0.00043783,120]
[404484778,1770202306086,-500.0,0.00043783,120]
[404484779,1770202306115,-500.0,0.00043783,120]
[404484780,1770202306144,-500.0,0.00043783,120]
[404484781,1770202306173,-500.0,0.00043783,120]
[404484782,1770202306202,-635.85661219,0.00043783,120]
[404484783,1770202306230,-548.30699012,0.00043783,120]
[404484784,1770202306258,-299.2198717,0.00043783,30]
[404484785,1770202306285,-162.26989176,0.00043783,30]
[404484786,1770202306312,-544.06164722,0.00043783,30]
[404484787,1770202306339,-406.77670914,0.00043783,30]
[404484788,1770202306365,-825.41122614,0.00043783,120]
[404484789,1770202306391,-959.3161175,0.00043783,91]
[404484790,1770202306417,-475.805736,0.00043783,120]
[404484791,1770202306443,-607.34413911,0.00043783,30]
[404484792,1770202306469,-280.75982871,0.00043783,120]
[404484793,1770202306498,-252.85367877,0.00043783,120]
[404484794,1770202306528,-229.74229064,0.00043783,120]
[404484795,1770202306557,-1662.0,0.00043783,30]
[404484796,1770202306584,-1662.0,0.00043783,120]
[404484797,1770202306610,-1014.32852364,0.00043783,30]
[404484798,1770202306638,-160.63707772,0.00043783,30]
[404484799,1770202306664,-172.8119413,0.00043783,120]
[404484800,1770202306689,-1030.40664138,0.00043783,120]
[404484801,1770202306715,-754.45755657,0.00043783,120]
[404484802,1770202306740,-811.94780868,0.00043783,120]
[404484803,1770202306767,-596.36739499,0.00043783,30]
[404484804,1770202306793,-1596.51177075,0.00043783,30]
[404484805,1770202306819,-167.53332613,0.00043783,120]
[404484806,1770202306845,-547.45259534,0.00043783,30]
[404484807,1770202306871,-884.39618476,0.00043783,90]
[404484808,1770202306897,-208.01900263,0.00043783,120]
[404484809,1770202306923,-507.60037054,0.00043783,120]
[404484810,1770202306949,-242.9735406,0.00043783,60]
[404484811,1770202306975,-307.65221209,0.00043783,120]
[404484812,1770202307001,-1280.74632344,0.00043783,120]
[404484813,1770202307027,-221.59671025,0.00043783,30]
[404484814,1770202307055,-381.75948664,0.00043783,30]
[404484815,1770202307084,-199.31746997,0.00043783,60]
[404484816,1770202307111,-273.47104457,0.00043783,120]
[404484817,1770202307138,-800.0,0.00043783,31]
[404484818,1770202307164,-800.0,0.00043783,31]
[404484819,1770202307190,-800.0,0.00043783,31]
[404484820,1770202307217,-748.71980461,0.00043783,120]
[404484821,1770202307243,-193.12335503,0.00043783,120]
[404484822,1770202307270,-263.75676234,0.00043783,120]
[404484823,1770202307295,-885.70780286,0.00043783,30]
[404484824,1770202307321,-282.78603391,0.00043783,120]
[404484825,1770202307346,-374.95659896,0.00043783,30]
[404484826,1770202307585,-501.87779918,0.00043783,120]
[404484827,1770202307614,-345.40895078,0.00043783,30]
[404484828,1770202307641,-651.21715949,0.00043783,30]
[404484829,1770202307668,-500.0,0.00043783,120]
[404484830,1770202307695,-500.0,0.00043783,120]
[404484831,1770202307721,-500.0,0.00043783,120]
[404484832,1770202307747,-500.0,0.00043783,120]
[404484833,1770202307773,-500.0,0.00043783,120]
[404484834,1770202307799,-477.38594967,0.00043783,120]
[404484835,1770202307825,-442.11362812,0.00043783,120]
[404484836,1770202307852,-453.80009443,0.00043783,120]
[404484837,1770202307879,-434.22906131,0.00043783,30]
[404484838,1770202307911,-620.84904309,0.00043783,120]
[404484839,1770202307937,-223.1,0.00043783,120]
[404484840,1770202307963,-1136.76657526,0.00043783,120]
[404484841,1770202307990,-167.72524194,0.00043783,120]
[404484842,1770202308015,-370.15638127,0.00043783,120]
[404484843,1770202308042,-433.54,0.00043783,89]
[404484844,1770202308067,-175.5869614,0.00043783,120]
[404484845,1770202308092,-416.45174652,0.00043783,120]
[404484846,1770202308118,-178.75637799,0.00043783,120]
[404484847,1770202308144,-229.55975461,0.00043783,120]
[404484848,1770202308171,-361.17498596,0.00043783,120]
[404484849,1770202308197,-227.91888594,0.00043783,120]
[404484850,1770202308225,-772.31919783,0.00043783,120]
[404484851,1770202308253,-306.3495722,0.00043783,30]
[404484852,1770202308280,-347.49057461,0.00043783,120]
[404484853,1770202308306,-426.61,0.00043783,89]
[404484854,1770202308332,-265.36252736,0.00043783,120]
[404484855,1770202308358,-366.66114301,0.00043783,30]
[404484856,1770202308385,-661.61316811,0.00043783,120]
[404484857,1770202308410,-415.15162856,0.00043783,120]
[404484858,1770202308436,-473.85864967,0.00043783,30]
[404484859,1770202308462,-421.34,0.00043783,89]
[404484860,1770202308489,-492.46148907,0.00043783,120]
[404484861,1770202308514,-604.48509482,0.00043783,30]
[404484862,1770202308541,-229.35875317,0.00043783,120]
[404484863,1770202308570,-445.13,0.00043783,89]
[404484864,1770202308596,-170.00130088,0.00043783,120]
[404484865,1770202308622,-1190.6620841,0.00043783,120]
[404484866,1770202308649,-880.13826696,0.00043783,120]
[404484867,1770202308675,-339.15417411,0.00043783,120]
[404484868,1770202308701,-176.15306955,0.00043783,30]
[404484869,1770202308728,-508.85680349,0.00043783,120]
[404484870,1770202308755,-371.8574779,0.00043783,120]
[404484871,1770202308781,-447.77142874,0.00043783,30]
[404484872,1770202308807,-439.39,0.00043783,89]
[404484873,1770202308833,-347.87299078,0.00043783,30]
[404484874,1770202308859,-284.3831022,0.00043783,30]
[404484875,1770202308885,-412.82412126,0.00043783,30]
[404484876,1770202308911,-318.04328374,0.00043783,30]
[404484877,1770202308936,-761.03061032,0.00043783,120]
[404484878,1770202308961,-215.51448491,0.00043783,120]
[404484879,1770202308986,-1330.01032783,0.00043783,120]
[404484880,1770202309012,-178.43893583,0.00043783,120]
[404484881,1770202309039,-1590.35357343,0.00043783,30]
[404484882,1770202309064,-353.62118558,0.00043783,30]
[404484883,1770202309090,-757.46586711,0.00043783,30]
[404484884,1770202309116,-217.41299392,0.00043783,120]
[404484885,1770202309142,-1000.01607499,0.00043783,120]
[404484886,1770202309168,-518.79329607,0.00043783,120]
[404484887,1770202309195,-206.3943308,0.00043783,120]
[404484888,1770202309222,-181.13561283,0.00043783,120]
[404484889,1770202309248,-553.69921229,0.00043783,120]
[404484890,1770202309274,-557.56199825,0.00043783,120]
[404484891,1770202309300,-659.13994011,0.00043783,120]
[404484892,1770202309326,-1317.67862108,0.00043783,36]
[404484893,1770202309351,-329.94098512,0.00043783,120]
[404484894,1770202309377,-620.42197011,0.00043783,120]
[404484895,1770202309404,-280.34645449,0.00043783,30]
[404484896,1770202309430,-226.96401811,0.00043783,120]
[404484897,1770202309455,-197.3203698,0.00043783,120]
[404484898,1770202309481,-190.96019493,0.00043783,120]
[404484899,1770202309507,-867.51851923,0.00043783,30]
[404484900,1770202309532,-342.7576536,0.00043783,120]
[404484901,1770202309560,-346.22293337,0.00043783,30]
[404484902,1770202309586,-275.30493265,0.00043783,120]
[404484903,1770202309613,-1386.72642927,0.00043783,30]
[404484904,1770202309640,-483.37983883,0.00043783,60]
[404484905,1770202309666,-299.61758868,0.00043783,120]
[404484906,1770202309693,-479.26471673,0.00043783,120]
[404484907,1770202309719,-607.23697866,0.00043783,30]
[404484908,1770202309746,-495.46001063,0.00043783,30]
[404484909,1770202309772,-289.6963741,0.00043783,30]
[404484910,1770202309798,-500.0,0.00043783,120]
[404484911,1770202309823,-815.58378046,0.00043783,120]
[404484912,1770202309850,-232.92084044,0.00043783,120]
[404484913,1770202310036,-471.40427809,0.00043783,37]
[404484914,1770202310063,-369.64009087,0.00043783,120]
[404484915,1770202310088,-495.74447785,0.00043783,30]
[404484916,1770202310116,-689.26983618,0.00043783,120]
[404484917,1770202310145,-191.05965094,0.00043783,120]
[404484918,1770202310172,-344.38248162,0.00043783,30]
[404484919,1770202310199,-482.95865776,0.00043783,120]
[404484920,1770202310227,-599.88,0.00043783,120]
[404484921,1770202310254,-599.88,0.00043783,120]
[404484922,1770202310282,-599.88,0.00043783,120]
[404484923,1770202310309,-599.88,0.00043783,120]
[404484924,1770202310336,-599.88,0.00043783,120]
[404484925,1770202310365,-599.88,0.00043783,120]
[404484926,1770202310395,-599.88,0.00043783,120]
[404484927,1770202310424,-599.88,0.00043783,120]
[404484928,1770202310452,-599.88,0.00043783,120]
[404484929,1770202310481,-599.88,0.00043783,120]
[404484930,1770202310508,-599.88,0.00043783,120]
[404484931,1770202310537,-599.88,0.00043783,120]
[404484932,1770202310569,-599.88,0.00043783,120]
[404484933,1770202310598,-599.88,0.00043783,120]
[404484934,1770202310628,-599.88,0.00043783,120]
[404484935,1770202310657,-599.88,0.00043783,120]
[404484936,1770202310686,-599.88,0.00043783,120]
[404484937,1770202310715,-599.88,0.00043783,120]
[404484938,1770202310744,-599.88,0.00043783,120]
[404484939,1770202310771,-599.88,0.00043783,120]
[404484940,1770202310798,-599.88,0.00043783,120]
[404484941,1770202310824,-599.88,0.00043783,120]
[404484942,1770202310851,-599.88,0.00043783,120]
[404484943,1770202310877,-599.96349193,0.00043783,120]
[404484944,1770202310903,-536.0930968,0.00043783,60]
[404484945,1770202310931,-1002.92702483,0.00043783,30]
[404484946,1770202310958,-561.93137,0.00043783,60]
[404484947,1770202310986,-319.61142,0.00043783,60]
[404484948,1770202311016,-561.93137,0.00043783,60]
[404484949,1770202311042,-319.61142,0.00043783,60]
[404484950,1770202311069,-561.93137,0.00043783,60]
[404484951,1770202311098,-319.61142,0.00043783,60]
[404484952,1770202311125,-561.93137,0.00043783,60]
[404484953,1770202311153,-319.61142,0.00043783,60]
[404484954,1770202311178,-561.93137,0.00043783,60]
[404484955,1770202311203,-319.61142,0.00043783,60]
[404484956,1770202311229,-800.0,0.00043783,31]
[404484957,1770202311255,-800.0,0.00043783,31]
[404484958,1770202311280,-800.0,0.00043783,31]
[404484959,1770202311305,-800.0,0.00043783,31]
[404484960,1770202311331,-800.0,0.00043783,31]
[404484961,1770202311357,-800.0,0.00043783,31]
[404484962,1770202311383,-800.0,0.00043783,31]
[404484963,1770202311410,-800.0,0.00043783,31]
[404484964,1770202311437,-800.0,0.00043783,31]
[404484965,1770202311465,-800.0,0.00043783,31]
[404484966,1770202311493,-800.0,0.00043783,31]
[404484967,1770202311521,-800.0,0.00043783,31]
[404484968,1770202311553,-800.0,0.00043783,31]
[404484969,1770202311583,-456.8244813,0.00043783,30]
[404484970,1770202311610,-427.46854123,0.00043783,120]
[404484971,1770202311640,-150.01,0.00043783,120]
[404484972,1770202311665,-2000.0,0.00043783,30]
[404484973,1770202311691,-150.01,0.00043783,120]
[404484974,1770202311721,-50000.0,0.00043783,65]
[404484975,1770202311747,-182.06555474,0.00043783,120]
[404484976,1770202311772,-738.0,0.00043783,30]
[404484977,1770202311797,-5100.0,0.00043783,37]
[404484978,1770202311822,-1623.0,0.00043783,30]
[404484979,1770202311848,-204496.51,0.00043783,120]
[404484980,1770202311872,-237.0,0.00043783,120]
[404484981,1770202311897,-150.0,0.00043783,30]
[404484982,1770202311923,-272.93,0.00043783,120]
[404484983,1770202311950,-2000.0,0.00043783,31]
[404484984,1770202311975,-250.0,0.00043783,120]
[404484985,1770202312002,-803.0,0.00043783,120]
[404484986,1770202312027,-400.0,0.00043783,30]
[404484987,1770202312053,-400.0,0.00043783,30]
[404484988,1770202312079,-400.0,0.00043783,30]
[404484989,1770202312103,-400.0,0.00043783,30]
[404484990,1770202312129,-400.0,0.00043783,30]
[404484991,1770202312155,-400.0,0.00043783,30]
[404484992,1770202312182,-400.0,0.00043783,30]
[404484993,1770202312207,-400.0,0.00043783,30]
[404484994,1770202312232,-400.0,0.00043783,30]
[404484995,1770202312257,-400.0,0.00043783,30]
[404484996,1770202312282,-400.0,0.00043783,30]
[404484997,1770202312308,-400.0,0.00043783,30]
[404484998,1770202312333,-400.0,0.00043783,30]
[404484999,1770202312510,-400.0,0.00043783,30]
[404485000,1770202312539,-400.0,0.00043783,30]
[404485001,1770202312571,-400.0,0.00043783,30]
[404485002,1770202312596,-431.97307615,0.00043783,30]
[404485003,1770202312621,-14222.84301084,0.00043783,30]
[404485004,1770202312646,-267.96528137,0.00043783,120]
[404485005,1770202312672,-500.0,0.00043783,120]
[404485006,1770202312697,-500.0,0.00043783,120]
[404485007,1770202312722,-512.62835584,0.00043783,120]
[404485008,1770202312749,-228.0,0.00043783,30]
[404485009,1770202312773,-200.90873319,0.00043783,120]
[404485010,1770202312799,-155.72468483,0.00043783,30]
[404485011,1770202312828,-500.0,0.00043783,120]
[404485012,1770202312857,-500.0,0.00043783,120]
[404485013,1770202312886,-183.46886736,0.00043783,120]
[404485014,1770202312913,-268.37218355,0.00043783,60]
[404485015,1770202312940,-1861.1903042,0.00043783,120]
[404485016,1770202312968,-1330.0,0.00043783,120]
[404485017,1770202312995,-731.0,0.00043783,30]
[404485018,1770202313023,-178.379981,0.00043783,90]
[404485019,1770202313049,-298.1,0.00043783,120]
[404485020,1770202313074,-6539.97673954,0.00043783,30]
[404485021,1770202313100,-571.77137046,0.00043783,120]
[404485022,1770202313127,-673.54835005,0.00043783,90]
[404485023,1770202313154,-14802.79633147,0.00043783,120]
[404485024,1770202313183,-283.13630966,0.00043783,60]